[Event "SWVG Arnold Classic Prestige All 2019"]
[Site "Sandton"]
[Date "2019.05.18"]
[Round "5.4"]
[White "Zwakala, Ntando"]
[Black "Simpson, Michael M"]
[Result "1-0"]
[ECO "D09"]
[WhiteElo "2088"]
[BlackElo "1995"]
[Annotator "NA"]
[PlyCount "51"]
[EventDate "2019.05.18"]
[EventType "swiss"]
[EventCountry "RSA"]
[SourceTitle "playchess.com"]
[Source "ChessBase"]
[SourceQuality "1"]
[TimeControl "1500+10"]

1. Nf3 {[%emt 0:00:00]} Nc6 {[%emt 0:00:00]} 2. d4 {[%emt 0:00:00]} d5 {[%emt 0:00:00]} 3. c4 {[%emt 0:00:03]} e5 {[%emt 0:00:00]} 4. dxe5 {[%emt 0:00:27]} d4 {[%emt 0:00:00]} 5. g3 {[%emt 0:00:09]} Nge7 {[%emt 0:00:15]} 6. Bg2 {[%emt 0:00:16]} Ng6 {[%emt 0:00:04]} 7. O-O {[%emt 0:00:09]} Bc5 {[%emt 0:01:01]} 8. Nbd2 {[%emt 0:00:24]} a5 {[%emt 0:00:28]} 9. Nb3 {[%emt 0:00:18]} Ba7 {[%emt 0:00:06]} 10. c5 {[%emt 0:01:42]} a4 {[%emt 0:02:42]} 11. Nbxd4 {[%emt 0:00:06]} Nxd4 {[%emt 0:01:57]} 12. Qxd4 {[%emt 0:01:21]} Qxd4 {[%emt 0:00:06]} 13. Nxd4 {[%emt 0:00:02]} Bxc5 {[%emt 0:00:33]} 14. Nb5 {[%emt 0:00:04]} Bb6 {[%emt 0:00:40]} 15. Be3 {[%emt 0:00:07]} Ra5 {[%emt 0:03:01]} 16. Bxb6 {[%emt 0:00:33]} Rxb5 {[%emt 0:00:03]} 17. Bxc7 {[%emt 0:00:15]} Rxb2 {[%emt 0:00:35]} 18. Bd6 {[%emt 0:01:27]} Rxe2 {[%emt 0:01:15]} 19. Rfc1 {[%emt 0:00:27]} Bd7 {[%emt 0:01:37]} 20. Bxb7 {[%emt 0:00:18]} Rb2 {[%emt 0:02:12]} 21. Bg2 {[%emt 0:00:54]} f6 {[%emt 0:07:34]} 22. Rab1 {[%emt 0:00:24]} Rxb1 {[%emt 0:00:31]} 23. Rxb1 {[%emt 0:00:03]} fxe5 {[%emt 0:01:02]} 24. Rb7 {[%emt 0:01:10]} Nf8 {[%emt 0:02:51]} 25. Rb8+ {[%emt 0:00:34]} Kf7 {[%emt 0:00:23]} 26. Bd5+ {[%emt 0:18:07]} 1-0

[Event "SWVG Arnold Classic Prestige All 2019"]
[Site "Sandton"]
[Date "2019.05.18"]
[Round "5.5"]
[White "Sithole, Collins"]
[Black "Oatlhotse, Providence"]
[Result "0-1"]
[ECO "A05"]
[WhiteElo "1861"]
[BlackElo "2289"]
[Annotator "NA"]
[PlyCount "148"]
[EventDate "2019.05.18"]
[EventType "swiss"]
[EventCountry "RSA"]
[SourceTitle "playchess.com"]
[Source "ChessBase"]
[SourceQuality "1"]
[TimeControl "1500+10"]

1. Nf3 {[%emt 0:00:00]} Nf6 {[%emt 0:00:00]} 2. g3 {[%emt 0:00:00]} b6 {[%emt 0:00:00]} 3. Bg2 {[%emt 0:00:00]} Ba6 {[%emt 0:00:08]} 4. d3 {[%emt 0:00:14]} d5 {[%emt 0:00:04]} 5. Nbd2 {[%emt 0:00:08]} Nbd7 {[%emt 0:00:08]} 6. c4 {[%emt 0:00:03]} c6 {[%emt 0:00:10]} 7. O-O {[%emt 0:00:31]} e6 {[%emt 0:00:06]} 8. b3 {[%emt 0:01:25]} Be7 {[%emt 0:00:10]} 9. Bb2 {[%emt 0:00:03]} O-O {[%emt 0:00:22]} 10. a3 {[%emt 0:00:09]} b5 {[%emt 0:00:37]} 11. Nd4 {[%emt 0:01:11]} Rc8 {[%emt 0:00:41]} 12. cxb5 {[%emt 0:00:17]} cxb5 {[%emt 0:00:09]} 13. Rc1 {[%emt 0:00:10]} Nc5 {[%emt 0:01:50]} 14. N2f3 {[%emt 0:01:16]} Qb6 {[%emt 0:02:00]} 15. Qd2 {[%emt 0:00:26]} Bb7 {[%emt 0:00:52]} 16. b4 {[%emt 0:00:18]} Na4 {[%emt 0:00:35]} 17. Ba1 {[%emt 0:00:35]} Rxc1 {[%emt 0:02:04]} 18. Rxc1 {[%emt 0:00:03]} Rc8 {[%emt 0:00:03]} 19. Ne5 {[%emt 0:00:43]} Rxc1+ {[%emt 0:00:48]} 20. Qxc1 {[%emt 0:00:03]} Bd6 {[%emt 0:00:30]} 21. Nb3 {[%emt 0:03:58]} a6 {[%emt 0:01:41]} 22. Bd4 {[%emt 0:00:17]} Qd8 {[%emt 0:01:20]} 23. Na5 {[%emt 0:00:35]} Ba8 {[%emt 0:00:10]} 24. h3 {[%emt 0:01:09]} Qb8 {[%emt 0:01:18]} 25. Bf3 {[%emt 0:00:26]} h6 {[%emt 0:00:42]} 26. Qe3 {[%emt 0:03:40]} Qc7 {[%emt 0:00:26]} 27. Kg2 {[%emt 0:01:23]} Nd7 {[%emt 0:01:07]} 28. Nxd7 {[%emt 0:02:07]} Qxd7 {[%emt 0:00:01]} 29. Nb3 {[%emt 0:00:11]} Qc7 {[%emt 0:00:23]} 30. Bc5 {[%emt 0:00:21]} Bc6 {[%emt 0:01:24]} 31. Bxd6 {[%emt 0:00:11]} Qxd6 {[%emt 0:00:01]} 32. Nc5 {[%emt 0:00:02]} d4 {[%emt 0:00:56]} 33. Qf4 {[%emt 0:00:28]} Bxf3+ {[%emt 0:03:43]} 34. Kxf3 {[%emt 0:00:53]} Qd5+ {[%emt 0:00:19]} 35. Qe4 {[%emt 0:00:26]} Nxc5 {[%emt 0:01:21]} 36. bxc5 {[%emt 0:00:31]} Qxc5 {[%emt 0:00:08]} 37. Qa8+ {[%emt 0:00:03]} Kh7 {[%emt 0:00:25]} 38. Qxa6 {[%emt 0:00:31]} Qd5+ {[%emt 0:00:32]} 39. e4 {[%emt 0:00:07]} Qb3 {[%emt 0:00:34]} 40. Kf4 {[%emt 0:01:36]} Qxd3 {[%emt 0:00:07]} 41. h4 {[%emt 0:00:55]} Qd2+ {[%emt 0:00:26]} 42. Kf3 {[%emt 0:00:04]} Qd3+ {[%emt 0:00:12]} 43. Kf4 {[%emt 0:00:08]} Qd2+ {[%emt 0:00:01]} 44. Kf3 {[%emt 0:00:02]} Qd1+ {[%emt 0:00:07]} 45. Kg2 {[%emt 0:00:51]} Qe2 {[%emt 0:00:05]} 46. Qb7 {[%emt 0:00:06]} d3 {[%emt 0:00:17]} 47. Qxf7 {[%emt 0:00:53]} Qxe4+ {[%emt 0:00:09]} 48. Qf3 {[%emt 0:00:01]} Qd4 {[%emt 0:00:33]} 49. h5 {[%emt 0:00:16]} d2 {[%emt 0:00:24]} 50. Qd1 {[%emt 0:00:02]} e5 {[%emt 0:00:35]} 51. f3 {[%emt 0:00:49]} e4 {[%emt 0:00:31]} 52. fxe4 {[%emt 0:00:01]} Qxe4+ {[%emt 0:02:25]} 53. Kf2 {[%emt 0:00:01]} Qd3 {[%emt 0:00:00]} 54. g4 {[%emt 0:00:26]} Kh8 {[%emt 0:00:00]} 55. Kg2 {[%emt 0:00:52]} Kg8 {[%emt 0:00:00]} 56. Kf2 {[%emt 0:00:04]} Kf7 {[%emt 0:00:00]} 57. Kg2 {[%emt 0:01:24]} Ke6 {[%emt 0:00:00]} 58. Kf2 {[%emt 0:00:01]} Kd5 {[%emt 0:00:00]} 59. Qh1+ {[%emt 0:00:40]} Qe4 {[%emt 0:00:02]} 60. Qd1 {[%emt 0:00:01]} Qd4+ {[%emt 0:00:12]} 61. Kf3 {[%emt 0:00:14]} Kc4 {[%emt 0:00:26]} 62. Kg3 {[%emt 0:00:23]} Qe3+ {[%emt 0:00:00]} 63. Kg2 {[%emt 0:00:21]} Qd3 {[%emt 0:00:00]} 64. Kf2 {[%emt 0:00:02]} Kc3 {[%emt 0:00:00]} 65. Qa1+ {[%emt 0:00:02]} Kb3 {[%emt 0:00:00]} 66. Qd1+ {[%emt 0:00:02]} Kxa3 {[%emt 0:00:12]} 67. Qa1+ {[%emt 0:00:00]} Kb3 {[%emt 0:00:14]} 68. Qd1+ {[%emt 0:00:01]} Kb2 {[%emt 0:00:18]} 69. Kg2 {[%emt 0:00:06]} b4 {[%emt 0:00:19]} 70. Kf2 {[%emt 0:00:04]} b3 {[%emt 0:00:04]} 71. g5 {[%emt 0:00:04]} hxg5 {[%emt 0:00:07]} 72. Kg2 {[%emt 0:00:04]} Ka2 {[%emt 0:00:10]} 73. h6 {[%emt 0:00:06]} gxh6 {[%emt 0:00:13]} 74. Kf2 {[%emt 0:00:02]} Qc2 {[%emt 0:00:12]} 0-1

[Event "SWVG Arnold Classic Prestige All 2019"]
[Site "Sandton"]
[Date "2019.05.18"]
[Round "5.6"]
[White "Mnguni, Jacob Dumisani"]
[Black "Simutowe, Musatwe"]
[Result "1-0"]
[ECO "A11"]
[WhiteElo "2141"]
[BlackElo "2170"]
[Annotator "NA"]
[PlyCount "148"]
[EventDate "2019.05.18"]
[EventType "swiss"]
[EventCountry "RSA"]
[SourceTitle "playchess.com"]
[Source "ChessBase"]
[SourceQuality "1"]
[TimeControl "1500+10"]

1. c4 {[%emt 0:00:00]} Nf6 {[%emt 0:00:00]} 2. g3 {[%emt 0:00:00]} c6 {[%emt 0:00:00]} 3. Bg2 {[%emt 0:00:00]} d5 {[%emt 0:00:00]} 4. Qc2 {[%emt 0:00:02]} g6 {[%emt 0:00:11]} 5. Nf3 {[%emt 0:00:03]} Bg7 {[%emt 0:00:01]} 6. O-O {[%emt 0:00:02]} O-O {[%emt 0:00:01]} 7. d3 {[%emt 0:00:03]} Nbd7 {[%emt 0:00:25]} 8. Nc3 {[%emt 0:03:22]} dxc4 {[%emt 0:01:37]} 9. dxc4 {[%emt 0:00:05]} Qa5 {[%emt 0:00:01]} 10. e4 {[%emt 0:01:56]} Ng4 {[%emt 0:01:53]} 11. Bg5 {[%emt 0:02:59]} Re8 {[%emt 0:00:19]} 12. h4 {[%emt 0:01:39]} Qb4 {[%emt 0:00:31]} 13. Nd2 {[%emt 0:00:36]} h6 {[%emt 0:00:03]} 14. a3 {[%emt 0:00:34]} Qb6 {[%emt 0:03:03]} 15. Na4 {[%emt 0:00:21]} Qd4 {[%emt 0:00:24]} 16. Nf3 {[%emt 0:00:26]} Qd6 {[%emt 0:00:22]} 17. Rad1 {[%emt 0:00:03]} Qc7 {[%emt 0:00:04]} 18. Bc1 {[%emt 0:00:22]} Ndf6 {[%emt 0:00:30]} 19. Rfe1 {[%emt 0:00:22]} e5 {[%emt 0:00:06]} 20. c5 {[%emt 0:00:21]} Be6 {[%emt 0:00:09]} 21. b4 {[%emt 0:00:12]} Rad8 {[%emt 0:00:22]} 22. Bb2 {[%emt 0:00:03]} Nd7 {[%emt 0:00:16]} 23. Nd2 {[%emt 0:00:20]} b5 {[%emt 0:00:09]} 24. Nc3 {[%emt 0:00:36]} a5 {[%emt 0:00:02]} 25. Nb3 {[%emt 0:00:32]} axb4 {[%emt 0:00:31]} 26. axb4 {[%emt 0:00:02]} Nb8 {[%emt 0:00:03]} 27. Ra1 {[%emt 0:00:46]} Rd7 {[%emt 0:01:43]} 28. Red1 {[%emt 0:00:29]} Red8 {[%emt 0:00:13]} 29. Bf1 {[%emt 0:00:30]} Bf8 {[%emt 0:01:59]} 30. Rxd7 {[%emt 0:00:40]} Rxd7 {[%emt 0:00:14]} 31. Nd1 {[%emt 0:00:50]} Nf6 {[%emt 0:00:27]} 32. Na5 {[%emt 0:01:30]} Rd8 {[%emt 0:00:27]} 33. Ne3 {[%emt 0:00:12]} Ng4 {[%emt 0:00:16]} 34. Nxg4 {[%emt 0:00:16]} Bxg4 {[%emt 0:00:02]} 35. Qc3 {[%emt 0:00:06]} Rd4 {[%emt 0:00:47]} 36. Qe1 {[%emt 0:00:12]} Rd7 {[%emt 0:00:08]} 37. Be2 {[%emt 0:00:33]} Be6 {[%emt 0:00:20]} 38. Bc3 {[%emt 0:00:30]} f6 {[%emt 0:00:30]} 39. Qc1 {[%emt 0:00:41]} Kf7 {[%emt 0:00:42]} 40. f4 {[%emt 0:00:08]} Bg7 {[%emt 0:01:06]} 41. fxe5 {[%emt 0:00:22]} fxe5 {[%emt 0:00:02]} 42. Qe3 {[%emt 0:00:08]} Kg8 {[%emt 0:00:03]} 43. Rf1 {[%emt 0:01:21]} Kh7 {[%emt 0:00:15]} 44. Bf3 {[%emt 0:01:12]} Rd8 {[%emt 0:00:56]} 45. Rd1 {[%emt 0:00:35]} Bf8 {[%emt 0:01:26]} 46. Rxd8 {[%emt 0:00:07]} Qxd8 {[%emt 0:00:02]} 47. Bxe5 {[%emt 0:00:18]} Na6 {[%emt 0:00:05]} 48. Bc3 {[%emt 0:01:40]} Qe8 {[%emt 0:01:11]} 49. Qd4 {[%emt 0:00:15]} Kg8 {[%emt 0:00:00]} 50. Qh8+ {[%emt 0:00:24]} Kf7 {[%emt 0:00:01]} 51. Nb7 {[%emt 0:00:12]} Qd7 {[%emt 0:01:52]} 52. Qf6+ {[%emt 0:01:00]} Ke8 {[%emt 0:00:02]} 53. Qxg6+ {[%emt 0:00:31]} Bf7 {[%emt 0:00:02]} 54. Nd6+ {[%emt 0:00:01]} Bxd6 {[%emt 0:00:06]} 55. Qxd6 {[%emt 0:00:02]} Qxd6 {[%emt 0:00:20]} 56. cxd6 {[%emt 0:00:02]} Kd7 {[%emt 0:00:00]} 57. e5 {[%emt 0:00:04]} c5 {[%emt 0:00:02]} 58. Bg4+ {[%emt 0:00:06]} Be6 {[%emt 0:00:08]} 59. Bxe6+ {[%emt 0:00:53]} Kxe6 {[%emt 0:00:02]} 60. bxc5 {[%emt 0:00:09]} Nxc5 {[%emt 0:00:03]} 61. Kg2 {[%emt 0:00:10]} Nd3 {[%emt 0:00:12]} 62. Kf3 {[%emt 0:03:24]} b4 63. Ke3 {[%emt 0:00:00]} Nc5 {[%emt 0:01:25]} 64. Bxb4 {[%emt 0:00:20]} Nd7 65. Bc3 {[%emt 0:00:00]} Nb6 {[%emt 0:00:17]} 66. Kf3 {[%emt 0:00:00]} Nd5 {[%emt 0:00:02]} 67. Bd4 {[%emt 0:00:00]} h5 {[%emt 0:00:05]} 68. g4 {[%emt 0:00:00]} Nb4 {[%emt 0:00:16]} 69. gxh5 {[%emt 0:00:50]} Nc6 70. Bc3 {[%emt 0:00:00]} Nd8 {[%emt 0:00:04]} 71. h6 {[%emt 0:00:00]} Nf7 {[%emt 0:00:01]} 72. h7 {[%emt 0:00:00]} Nh8 {[%emt 0:00:06]} 73. d7 {[%emt 0:00:00]} Nf7 {[%emt 0:00:04]} 74. h8=Q {[%emt 0:00:00]} Kd5 {[%emt 0:08:13] Ke4+} 1-0

[Event "SWVG Arnold Classic Prestige All 2019"]
[Site "Sandton"]
[Date "2019.05.18"]
[Round "5.7"]
[White "Masiya, Mfundo"]
[Black "Mpya, Tshediso M"]
[Result "1/2-1/2"]
[ECO "A01"]
[WhiteElo "1977"]
[BlackElo "1936"]
[Annotator "NA"]
[PlyCount "49"]
[EventDate "2019.05.18"]
[EventType "swiss"]
[EventCountry "RSA"]
[SourceTitle "playchess.com"]
[Source "ChessBase"]
[SourceQuality "1"]
[TimeControl "1500+10"]

1. b3 {[%emt 0:00:00]} d5 {[%emt 0:00:18]} 2. Bb2 {[%emt 0:00:00]} Nc6 {[%emt 0:00:14]} 3. e3 {[%emt 0:00:12]} Nf6 {[%emt 0:00:21]} 4. f4 {[%emt 0:00:06]} d4 {[%emt 0:00:41]} 5. exd4 {[%emt 0:00:46]} Nxd4 {[%emt 0:00:06]} 6. Nf3 {[%emt 0:00:15]} Bg4 {[%emt 0:02:17]} 7. Bxd4 {[%emt 0:00:37]} Bxf3 {[%emt 0:00:04]} 8. Qxf3 {[%emt 0:00:03]} Qxd4 {[%emt 0:00:03]} 9. Qxb7 {[%emt 0:01:35]} Rd8 {[%emt 0:00:25]} 10. Bb5+ {[%emt 0:00:23]} Nd7 {[%emt 0:00:03]} 11. Nc3 {[%emt 0:00:51]} e6 {[%emt 0:01:48]} 12. O-O-O {[%emt 0:00:59]} Ba3+ {[%emt 0:00:12]} 13. Kb1 {[%emt 0:00:02]} O-O {[%emt 0:00:08]} 14. Bxd7 {[%emt 0:01:29]} Rxd7 {[%emt 0:00:03]} 15. Qe4 {[%emt 0:01:50]} Qf6 {[%emt 0:00:30]} 16. Qa4 {[%emt 0:00:12]} Qe7 {[%emt 0:00:14]} 17. d4 {[%emt 0:05:24]} Rfd8 {[%emt 0:05:52]} 18. Nb5 {[%emt 0:00:16]} Bc5 {[%emt 0:00:09]} 19. c3 {[%emt 0:04:05]} c6 {[%emt 0:00:16]} 20. Nc7 {[%emt 0:00:42]} Bb6 {[%emt 0:02:32]} 21. Na6 {[%emt 0:00:29]} c5 {[%emt 0:00:03]} 22. Rd3 {[%emt 0:01:35]} cxd4 {[%emt 0:00:32]} 23. c4 {[%emt 0:06:59]} e5 {[%emt 0:11:59]} 24. fxe5 {[%emt 0:00:10]} Qxe5 {[%emt 0:00:10]} 25. Nb4 {[%emt 0:00:10]} 1/2-1/2

[Event "SWVG Arnold Classic Prestige All 2019"]
[Site "Sandton"]
[Date "2019.05.18"]
[Round "5.9"]
[White "Smit, Devon"]
[Black "Bhawoodien, Shabir Hussain"]
[Result "0-1"]
[ECO "C53"]
[WhiteElo "1743"]
[BlackElo "2020"]
[Annotator "NA"]
[PlyCount "140"]
[EventDate "2019.05.18"]
[EventType "swiss"]
[EventCountry "RSA"]
[SourceTitle "playchess.com"]
[Source "ChessBase"]
[SourceQuality "1"]
[TimeControl "1500+10"]

1. e4 {[%emt 0:00:00]} e5 {[%emt 0:00:00]} 2. Nf3 {[%emt 0:00:00]} Nc6 {[%emt 0:00:00]} 3. Bc4 {[%emt 0:00:00]} Bc5 {[%emt 0:00:00]} 4. c3 {[%emt 0:00:03]} Qe7 {[%emt 0:00:00]} 5. O-O {[%emt 0:00:40]} Bb6 {[%emt 0:00:00]} 6. d4 {[%emt 0:00:13]} d6 {[%emt 0:00:01]} 7. Ng5 {[%emt 0:00:32]} Nh6 {[%emt 0:01:45]} 8. d5 {[%emt 0:05:30]} Nb8 {[%emt 0:00:17]} 9. Kh1 {[%emt 0:00:41]} O-O {[%emt 0:02:35]} 10. h3 {[%emt 0:00:30]} Nd7 {[%emt 0:01:20]} 11. Nf3 {[%emt 0:00:27]} Qf6 {[%emt 0:00:08]} 12. Bg5 {[%emt 0:00:27]} Qg6 {[%emt 0:00:02]} 13. Qc1 {[%emt 0:00:48]} Qxe4 {[%emt 0:04:42]} 14. Bxh6 {[%emt 0:00:10]} gxh6 {[%emt 0:00:05]} 15. Qxh6 {[%emt 0:00:53]} Qg6 {[%emt 0:00:16]} 16. Qxg6+ {[%emt 0:04:34]} hxg6 {[%emt 0:00:42]} 17. a4 {[%emt 0:00:03]} a5 {[%emt 0:00:52]} 18. Nbd2 {[%emt 0:00:37]} f5 {[%emt 0:00:35]} 19. Rad1 {[%emt 0:01:03]} Nc5 {[%emt 0:00:20]} 20. b3 {[%emt 0:00:38]} Kg7 {[%emt 0:00:35]} 21. Bb5 {[%emt 0:00:38]} Kf6 {[%emt 0:02:04]} 22. b4 {[%emt 0:00:06]} Na6 {[%emt 0:07:09]} 23. Bxa6 {[%emt 0:00:38]} Rxa6 {[%emt 0:00:24]} 24. b5 {[%emt 0:00:08]} Ra8 {[%emt 0:00:06]} 25. Nc4 {[%emt 0:00:08]} Bc5 {[%emt 0:00:05]} 26. Rb1 {[%emt 0:00:33]} b6 {[%emt 0:00:45]} 27. Rbd1 {[%emt 0:00:33]} g5 {[%emt 0:00:07]} 28. Ne1 {[%emt 0:00:11]} Rh8 {[%emt 0:00:13]} 29. Kg1 {[%emt 0:00:24]} Rh4 {[%emt 0:00:19]} 30. Nb2 {[%emt 0:00:15]} Bd7 {[%emt 0:00:54]} 31. Ned3 {[%emt 0:00:08]} Ba3 {[%emt 0:00:31]} 32. Ra1 {[%emt 0:00:05]} Bxb2 {[%emt 0:00:11]} 33. Nxb2 {[%emt 0:00:01]} g4 {[%emt 0:00:16]} 34. hxg4 {[%emt 0:00:20]} Rxg4 {[%emt 0:00:52]} 35. f3 {[%emt 0:00:04]} Rg3 {[%emt 0:00:08]} 36. Kf2 {[%emt 0:00:41]} Rag8 {[%emt 0:00:01]} 37. Rg1 {[%emt 0:00:02]} f4 {[%emt 0:01:10]} 38. Nc4 {[%emt 0:00:14]} e4 {[%emt 0:00:11]} 39. fxe4 {[%emt 0:00:25]} Rxc3 {[%emt 0:00:01]} 40. Rac1 {[%emt 0:00:02]} Rgg3 {[%emt 0:00:12]} 41. Nd2 {[%emt 0:00:44]} Ra3 {[%emt 0:00:18]} 42. Rxc7 {[%emt 0:00:18]} Ra2 {[%emt 0:00:23]} 43. Rxd7 {[%emt 0:01:54]} Rxd2+ {[%emt 0:00:01]} 44. Ke1 {[%emt 0:00:04]} Ra2 {[%emt 0:00:05]} 45. Rxd6+ {[%emt 0:00:10]} Ke5 {[%emt 0:00:00]} 46. Rc6 {[%emt 0:00:06]} f3 {[%emt 0:00:29]} 47. Rf1 {[%emt 0:01:22]} fxg2 {[%emt 0:00:25]} 48. Rg1 {[%emt 0:00:45]} Re3+ {[%emt 0:00:25]} 49. Kd1 {[%emt 0:00:05]} Rf2 {[%emt 0:00:37]} 50. Rc1 {[%emt 0:00:26]} Ree2 {[%emt 0:00:08]} 51. Rb1 {[%emt 0:00:24]} Rd2+ {[%emt 0:00:19]} 52. Kc1 {[%emt 0:00:03]} Rc2+ {[%emt 0:00:01]} 53. Kd1 {[%emt 0:00:01]} Ra2 {[%emt 0:00:13]} 54. Ke1 {[%emt 0:00:13]} Kxe4 {[%emt 0:00:13]} 55. d6 {[%emt 0:00:04]} Rfe2+ {[%emt 0:00:01]} 56. Kd1 {[%emt 0:00:03]} Red2+ {[%emt 0:00:01]} 57. Ke1 {[%emt 0:00:05]} Rxd6 {[%emt 0:00:02]} 58. Rc1 {[%emt 0:00:14]} Rdd2 {[%emt 0:00:05]} 59. Rb1 {[%emt 0:00:03]} Re2+ {[%emt 0:00:08]} 60. Kd1 {[%emt 0:00:01]} Rad2+ {[%emt 0:00:03]} 61. Kc1 {[%emt 0:00:02]} Kd3 {[%emt 0:00:06]} 62. Rb3+ {[%emt 0:00:02]} Kc4 {[%emt 0:00:01]} 63. Rb1 {[%emt 0:00:18]} Kc3 {[%emt 0:00:02]} 64. Ra1 {[%emt 0:00:11]} Rf2 {[%emt 0:00:05]} 65. Ra3+ {[%emt 0:00:02]} Kb4 {[%emt 0:00:06]} 66. Ra1 {[%emt 0:00:03]} Kb3 {[%emt 0:00:02]} 67. Rb1+ {[%emt 0:00:01]} Kxa4 {[%emt 0:00:06]} 68. Ra1+ {[%emt 0:00:14]} Kb4 {[%emt 0:00:05]} 69. Rb1+ {[%emt 0:00:02]} Kc3 {[%emt 0:00:02]} 70. Ra1 {[%emt 0:00:01]} Rf1+ {[%emt 0:00:15]} 0-1

[Event "SWVG Arnold Classic Prestige All 2019"]
[Site "Sandton"]
[Date "2019.05.18"]
[Round "5.12"]
[White "Van Der Walt, Pierre E."]
[Black "Steyn, Hans"]
[Result "1-0"]
[ECO "C15"]
[WhiteElo "1993"]
[BlackElo "1863"]
[Annotator "NA"]
[PlyCount "77"]
[EventDate "2019.05.18"]
[EventType "swiss"]
[EventCountry "RSA"]
[SourceTitle "playchess.com"]
[Source "ChessBase"]
[SourceQuality "1"]
[TimeControl "1500+10"]

1. e4 {[%emt 0:25:10]} e6 {[%emt 0:25:10]} 2. d4 {[%emt 0:00:10]} d5 {[%emt 0:00:10]} 3. Nc3 {[%emt 0:00:10]} Bb4 {[%emt 0:00:10]} 4. Nge2 {[%emt 0:00:10]} Nf6 {[%emt 0:00:10]} 5. e5 {[%emt 0:00:10]} Nfd7 {[%emt 0:00:10]} 6. a3 {[%emt 0:00:10]} Be7 {[%emt 0:00:10]} 7. f4 {[%emt 0:00:10]} c5 {[%emt 0:00:10]} 8. Be3 {[%emt 0:00:10]} Nc6 {[%emt 0:00:10]} 9. Qd2 {[%emt 0:00:10]} a6 {[%emt 0:00:10]} 10. dxc5 {[%emt 0:00:10]} Nxc5 {[%emt 0:00:10]} 11. Nd4 {[%emt 0:00:10]} Qc7 {[%emt 0:00:10]} 12. g3 {[%emt 0:00:10]} b5 {[%emt 0:00:10]} 13. Nxc6 {[%emt 0:00:10]} Qxc6 {[%emt 0:00:10]} 14. Bg2 {[%emt 0:00:10]} Bb7 {[%emt 0:00:10]} 15. O-O {[%emt 0:00:10]} Rc8 {[%emt 0:00:10]} 16. f5 {[%emt 0:00:10]} Ne4 {[%emt 0:00:10]} 17. Nxe4 {[%emt 0:00:10]} dxe4 {[%emt 0:00:10]} 18. f6 {[%emt 0:00:10]} gxf6 {[%emt 0:00:10]} 19. exf6 {[%emt 0:00:10]} Bc5 {[%emt 0:00:10]} 20. c3 {[%emt 0:00:10]} Rd8 {[%emt 0:00:10]} 21. Qf2 {[%emt 0:00:10]} Bd6 {[%emt 0:00:10]} 22. Rad1 {[%emt 0:00:10]} O-O {[%emt 0:00:10]} 23. Qe2 {[%emt 0:00:10]} Kh8 {[%emt 0:00:10]} 24. Rd4 {[%emt 0:00:10]} Bc5 {[%emt 0:00:10]} 25. Rxe4 {[%emt 0:00:10]} Qb6 {[%emt 0:00:10]} 26. Re5 {[%emt 0:00:10]} Bxe3+ {[%emt 0:00:10]} 27. Qxe3 {[%emt 0:00:10]} Qxe3+ {[%emt 0:00:10]} 28. Rxe3 {[%emt 0:00:10]} Bxg2 {[%emt 0:00:10]} 29. Kxg2 {[%emt 0:00:10]} h6 {[%emt 0:00:10]} 30. Re5 {[%emt 0:00:10]} Kh7 {[%emt 0:00:10]} 31. Rf2 {[%emt 0:00:10]} Kg6 {[%emt 0:00:10]} 32. a4 {[%emt 0:00:10]} bxa4 {[%emt 0:00:10]} 33. Ra5 {[%emt 0:00:10]} Rd6 34. Rxa4 {[%emt 0:00:10]} Rb8 {[%emt 0:00:20]} 35. Rg4+ {[%emt 0:00:10]} Kh5 {[%emt 0:00:10]} 36. Rg7 {[%emt 0:00:10]} Rb7 {[%emt 0:00:10]} 37. Rf4 {[%emt 0:00:10]} Rxb2+ {[%emt 0:00:10]} 38. Kh3 {[%emt 0:00:10]} Rxh2+ {[%emt 0:00:10]} 39. Kxh2 {[%emt 0:00:10]} 1-0

[Event "SWVG Arnold Classic Prestige All 2019"]
[Site "Sandton"]
[Date "2019.05.18"]
[Round "6.2"]
[White "Cawdery, Daniel"]
[Black "Zwakala, Ntando"]
[Result "1/2-1/2"]
[ECO "B08"]
[WhiteElo "2428"]
[BlackElo "2088"]
[Annotator "NA"]
[PlyCount "40"]
[EventDate "2019.05.18"]
[EventType "swiss"]
[EventCountry "RSA"]
[SourceTitle "playchess.com"]
[Source "ChessBase"]
[SourceQuality "1"]
[TimeControl "1500+10"]

1. d4 {[%emt 0:00:00]} Nf6 {[%emt 0:00:00]} 2. Nf3 {[%emt 0:00:00]} g6 {[%emt 0:00:02]} 3. Nc3 {[%emt 0:00:10]} Bg7 {[%emt 0:00:16]} 4. e4 {[%emt 0:00:17]} d6 {[%emt 0:00:08]} 5. Bg5 {[%emt 0:00:21]} O-O {[%emt 0:00:20]} 6. Qd2 {[%emt 0:00:07]} c6 {[%emt 0:00:49]} 7. O-O-O {[%emt 0:00:15]} b5 {[%emt 0:00:12]} 8. e5 {[%emt 0:01:03]} b4 {[%emt 0:01:04]} 9. exf6 {[%emt 0:03:51]} bxc3 {[%emt 0:00:09]} 10. Qxc3 {[%emt 0:00:11]} exf6 {[%emt 0:00:05]} 11. Bf4 {[%emt 0:00:18]} a5 {[%emt 0:01:22]} 12. Qa3 {[%emt 0:00:09]} d5 {[%emt 0:00:26]} 13. Bd3 {[%emt 0:00:49]} Na6 {[%emt 0:01:07]} 14. c3 {[%emt 0:00:34]} Re8 {[%emt 0:00:23]} 15. Rhe1 {[%emt 0:00:28]} Be6 {[%emt 0:00:31]} 16. h4 {[%emt 0:01:11]} h5 {[%emt 0:02:47]} 17. Kb1 {[%emt 0:00:46]} a4 {[%emt 0:01:39]} 18. Re2 {[%emt 0:00:52]} Bf8 {[%emt 0:16:40]} 19. Bd6 {[%emt 0:16:48]} Bg7 {[%emt 0:00:10]} 20. Ree1 Nb8 {[%emt 0:00:00]} 1/2-1/2

[Event "SWVG Arnold Classic Prestige All 2019"]
[Site "Sandton"]
[Date "2019.05.18"]
[Round "6.5"]
[White "Mpya, Tshediso M"]
[Black "Mthunzi, Brighton"]
[Result "1/2-1/2"]
[ECO "D02"]
[WhiteElo "1936"]
[BlackElo "2006"]
[Annotator "NA"]
[PlyCount "20"]
[EventDate "2019.05.18"]
[EventType "swiss"]
[EventCountry "RSA"]
[SourceTitle "playchess.com"]
[Source "ChessBase"]
[SourceQuality "1"]
[TimeControl "1500+10"]

1. d4 {[%emt 0:00:00]} Nf6 {[%emt 0:00:00]} 2. Bf4 {[%emt 0:00:02]} g6 {[%emt 0:00:02]} 3. Nd2 {[%emt 0:00:13]} d5 {[%emt 0:25:28]} 4. e3 {[%emt 0:00:30]} Bg7 {[%emt 0:00:36]} 5. Ngf3 {[%emt 0:00:14]} O-O {[%emt 0:00:17]} 6. h3 {[%emt 0:00:31]} c5 {[%emt 0:24:56]} 7. c3 {[%emt 0:00:08]} cxd4 {[%emt 0:01:47]} 8. cxd4 {[%emt 0:02:53]} Nc6 {[%emt 0:00:38]} 9. Be2 {[%emt 0:00:41]} Bf5 {[%emt 0:02:17]} 10. O-O {[%emt 0:01:58]} Rc8 {[%emt 0:19:43]} 1/2-1/2